fUSD/lending_fUSD_20260606
["ID","MTS","AMOUNT","RATE_DAILY","PERIOD"]
[424305695,1780759848000,-1094.222631,0.00027397,2]
[424305697,1780759848000,-1094.222631,0.00027397,2]
[424305698,1780759848000,-1094.222631,0.00027397,2]
[424305700,1780759848000,-4263.549049,0.00027397,2]
[424305708,1780759848000,-4263.549049,0.00027397,2]
[424305709,1780759848000,-4263.549049,0.00027397,2]
[424305702,1780759848000,-4263.549049,0.00027397,2]
[424305706,1780759848000,-4263.549049,0.00027397,2]
[424305699,1780759848000,-4263.549049,0.00027397,2]
[424305710,1780759848000,-37393.49,0.00027397,10]
[424305705,1780759848000,-4263.549049,0.00027397,2]
[424305701,1780759848000,-4263.549049,0.00027397,2]
[424305703,1780759848000,-4263.549049,0.00027397,2]
[424305707,1780759848000,-4263.549049,0.00027397,2]
[424305711,1780759848000,-4263.549049,0.00027397,2]
[424305712,1780759848000,-31161.24,0.00027397,10]
[424305655,1780759848000,-433.109753,0.00027397,2]
[424305687,1780759848000,-1094.222631,0.00027397,2]
[424305686,1780759848000,-926.031354,0.00027397,2]
[424305704,1780759848000,-4263.549049,0.00027397,2]
[424305685,1780759848000,-926.031354,0.00027397,2]
[424305654,1780759848000,-433.109753,0.00027397,2]
[424305684,1780759848000,-926.031354,0.00027397,2]
[424305652,1780759848000,-433.109753,0.00027397,2]
[424305661,1780759848000,-2129.55451,0.00027397,2]
[424305672,1780759848000,-2129.55451,0.00027397,2]
[424305671,1780759848000,-2129.55451,0.00027397,2]
[424305660,1780759848000,-433.109753,0.00027397,2]
[424305663,1780759848000,-2129.55451,0.00027397,2]
[424305662,1780759848000,-2129.55451,0.00027397,2]
[424305667,1780759848000,-2129.55451,0.00027397,2]
[424305665,1780759848000,-2129.55451,0.00027397,2]
[424305664,1780759848000,-2129.55451,0.00027397,2]
[424305668,1780759848000,-2129.55451,0.00027397,2]
[424305666,1780759848000,-2129.55451,0.00027397,2]
[424305669,1780759848000,-2129.55451,0.00027397,2]
[424305678,1780759848000,-926.031354,0.00027397,2]
[424305681,1780759848000,-926.031354,0.00027397,2]
[424305680,1780759848000,-926.031354,0.00027397,2]
[424305677,1780759848000,-926.031354,0.00027397,2]
[424305683,1780759848000,-926.031354,0.00027397,2]
[424305676,1780759848000,-926.031354,0.00027397,2]
[424305682,1780759848000,-926.031354,0.00027397,2]
[424305674,1780759848000,-1000.0,0.00027397,20]
[424305675,1780759848000,-926.031354,0.00027397,2]
[424305673,1780759848000,-1022.45,0.00027397,2]
[424305670,1780759848000,-2129.55451,0.00027397,2]
[424305679,1780759848000,-926.031354,0.00027397,2]
[424305756,1780759849000,-158.21009828,0.00027705,2]
[424305755,1780759849000,-500.0,0.00027699,2]
[424305753,1780759849000,-167.98446178,0.00027693,2]
[424305754,1780759849000,-209.0042667,0.00027693,2]
[424305764,1780759849000,-217.61157501,0.00027705,2]
[424305765,1780759849000,-185.12261461,0.00027705,2]
[424305752,1780759849000,-716.0,0.00027671,2]
[424305749,1780759849000,-155.61563623,0.00027669,2]
[424305750,1780759849000,-193.34573733,0.00027669,2]
[424305747,1780759849000,-150.77918689,0.00027669,2]
[424305746,1780759849000,-166.93598113,0.00027669,2]
[424305744,1780759849000,-210.13103949,0.00027669,2]
[424305766,1780759849000,-159.5804946,0.00027705,2]
[424305757,1780759849000,-425.18164569,0.00027705,2]
[424305772,1780759849000,-183.07618996,0.00027705,2]
[424305759,1780759849000,-167.36003465,0.00027705,2]
[424305762,1780759849000,-153.43792692,0.00027705,2]
[424305763,1780759849000,-329.43171364,0.00027705,2]
[424305760,1780759849000,-372.67720092,0.00027705,2]
[424305761,1780759849000,-158.17172022,0.00027705,2]
[424305767,1780759849000,-168.17139513,0.00027705,2]
[424305769,1780759849000,-151.84569748,0.00027705,2]
[424305775,1780759849000,-201.39268205,0.00027705,2]
[424305770,1780759849000,-179.51155169,0.00027705,2]
[424305768,1780759849000,-173.77427272,0.00027705,2]
[424305771,1780759849000,-151.6552729,0.00027705,2]
[424305774,1780759849000,-153.91655154,0.00027705,2]
[424305740,1780759849000,-500.0,0.000275,7]
[424305758,1780759849000,-396.47577493,0.00027705,2]
[424305751,1780759849000,-188.56290069,0.00027669,2]
[424305723,1780759849000,-2000.0,0.00027403,2]
[424305745,1780759849000,-152.76375508,0.00027669,2]
[424305713,1780759849000,-178.34503778,0.00027397,30]
[424305715,1780759849000,-1739.75,0.000274,7]
[424305714,1780759849000,-570.03653737,0.00027397,7]
[424305724,1780759849000,-2000.0,0.00027403,2]
[424305716,1780759849000,-3817.31,0.000274,7]
[424305720,1780759849000,-300.0,0.00027402,10]
[424305719,1780759849000,-800.0,0.000274,7]
[424305717,1780759849000,-1093.96,0.000274,7]
[424305722,1780759849000,-2000.0,0.00027403,2]
[424305721,1780759849000,-2000.0,0.00027403,2]
[424305718,1780759849000,-1399.73,0.000274,14]
[424305726,1780759849000,-1967.05,0.00027403,2]
[424305725,1780759849000,-2000.0,0.00027403,2]
[424305736,1780759849000,-1000.0,0.00027403,2]
[424305737,1780759849000,-1000.0,0.00027403,2]
[424305732,1780759849000,-1000.0,0.00027403,2]
[424305727,1780759849000,-1000.0,0.00027403,2]
[424305731,1780759849000,-1000.0,0.00027403,2]
[424305738,1780759849000,-862.65,0.00027403,2]
[424305730,1780759849000,-1000.0,0.00027403,2]
[424305729,1780759849000,-1000.0,0.00027403,2]
[424305728,1780759849000,-1000.0,0.00027403,2]
[424305734,1780759849000,-1000.0,0.00027403,2]
[424305733,1780759849000,-1000.0,0.00027403,2]
[424305735,1780759849000,-1000.0,0.00027403,2]
[424305739,1780759849000,-204.77677487,0.000275,2]
[424305743,1780759849000,-183.67418236,0.00027669,2]
[424305742,1780759849000,-202.49290182,0.00027669,2]
[424305741,1780759849000,-3041.2,0.00027556,7]
[424305748,1780759849000,-205.89754381,0.00027669,2]
[424305778,1780759849000,-166.49966765,0.00027705,2]
[424305782,1780759849000,-171.38767055,0.00027705,2]
[424305773,1780759849000,-155.5985547,0.00027705,2]
[424305809,1780759849000,-1352.79582961,0.00028,2]
[424305813,1780759849000,-160.0,0.00028,2]
[424305811,1780759849000,-318.55449432,0.00028,30]
[424305815,1780759849000,-162.39,0.00028,2]
[424305817,1780759849000,-162.39,0.00028,2]
[424305818,1780759849000,-162.39,0.00028,2]
[424305819,1780759849000,-162.39,0.00028,2]
[424305816,1780759849000,-162.39,0.00028,2]
[424305823,1780759849000,-215.80795776,0.00028,10]
[424305826,1780759849000,-514.75,0.00028023,2]
[424305822,1780759849000,-162.41,0.00028,2]
[424305824,1780759849000,-3051.0,0.00028011,2]
[424305820,1780759849000,-162.39,0.00028,2]
[424305825,1780759849000,-200.0,0.00028016,2]
[424305821,1780759849000,-162.39,0.00028,2]
[424305838,1780759849000,-2000.0,0.00028096,2]
[424305829,1780759849000,-1428.39,0.00028053,2]
[424305828,1780759849000,-2000.0,0.00028053,2]
[424305839,1780759849000,-264.67,0.00028096,2]
[424305830,1780759849000,-327.44,0.00028074,2]
[424305840,1780759849000,-1739.75,0.000281,7]
[424305827,1780759849000,-785.86,0.00028048,2]
[424305831,1780759849000,-1428.49,0.00028079,2]
[424305832,1780759849000,-1300.7,0.00028082,2]
[424305837,1780759849000,-2000.0,0.00028096,2]
[424305835,1780759849000,-1917.26,0.00028089,2]
[424305836,1780759849000,-150.0,0.00028089,2]
[424305834,1780759849000,-2000.0,0.00028089,2]
[424305776,1780759849000,-180.80321223,0.00027705,2]
[424305810,1780759849000,-51757.05798714,0.00028,2]
[424305808,1780759849000,-213.2537637,0.00028,2]
[424305833,1780759849000,-2558.03643175,0.00028082,2]
[424305812,1780759849000,-1148.35266817,0.00028,60]
[424305806,1780759849000,-400.0,0.00028,2]
[424305777,1780759849000,-161.8511874,0.00027705,2]
[424305781,1780759849000,-158.09150112,0.00027705,2]
[424305791,1780759849000,-217.15233878,0.00027741,2]
[424305783,1780759849000,-167.23948752,0.00027705,2]
[424305790,1780759849000,-862.28603014,0.00027741,2]
[424305780,1780759849000,-155.1837389,0.00027705,2]
[424305788,1780759849000,-260.4103811,0.00027741,2]
[424305784,1780759849000,-153.85396636,0.00027705,2]
[424305789,1780759849000,-1776.30922209,0.00027741,2]
[424305786,1780759849000,-163.85940282,0.00027705,2]
[424305785,1780759849000,-150.63272832,0.00027705,2]
[424305787,1780759849000,-184.09557416,0.00027705,2]
[424305792,1780759849000,-348.0827721,0.00027741,2]
[424305779,1780759849000,-184.23545393,0.00027705,2]
[424305796,1780759849000,-500.0,0.00027741,2]
[424305805,1780759849000,-500.0,0.00027995,2]
[424305807,1780759849000,-533.13440926,0.00028,2]
[424305803,1780759849000,-157.324506,0.00027921,10]
[424305814,1780759849000,-325.0,0.00028,2]
[424305793,1780759849000,-200.0,0.00027741,2]
[424305800,1780759849000,-1548.0,0.00027857,3]
[424305804,1780759849000,-151.0,0.00027924,4]
[424305801,1780759849000,-150.03522787,0.00027913,2]
[424305798,1780759849000,-260.4103811,0.00027741,2]
[424305799,1780759849000,-151.0,0.00027741,2]
[424305797,1780759849000,-151.0,0.00027741,2]
[424305795,1780759849000,-260.4103811,0.00027741,2]
[424305794,1780759849000,-11878.85235123,0.00027741,2]
[424305802,1780759849000,-244.29168083,0.00027917,2]
[424305881,1780759850000,-480.0,0.00028596,2]
[424305882,1780759850000,-3344.07,0.0002863,30]
[424305890,1780759850000,-945.98,0.00028661,7]
[424305889,1780759850000,-3595.24,0.0002863,30]
[424305888,1780759850000,-1401.3,0.0002863,30]
[424305870,1780759850000,-233.5188934,0.0002856,2]
[424305876,1780759850000,-550.0,0.00028596,2]
[424305872,1780759850000,-550.0,0.00028596,2]
[424305874,1780759850000,-550.0,0.00028596,2]
[424305871,1780759850000,-187.4024643,0.0002856,2]
[424305873,1780759850000,-550.0,0.00028596,2]
[424305880,1780759850000,-550.0,0.00028596,2]
[424305884,1780759850000,-3592.68,0.0002863,30]
[424305892,1780759850000,-945.98,0.00028693,30]
[424305883,1780759850000,-945.98,0.0002863,2]
[424305891,1780759850000,-944.95,0.00028661,7]
[424305885,1780759850000,-1400.79,0.0002863,30]
[424305886,1780759850000,-944.95,0.0002863,2]
[424305887,1780759850000,-3358.76,0.0002863,30]
[424305893,1780759850000,-944.95,0.00028693,30]
[424305894,1780759850000,-1739.75,0.000287,7]
[424305899,1780759850000,-944.95,0.00028756,7]
[424305898,1780759850000,-945.98,0.00028756,7]
[424305896,1780759850000,-944.95,0.00028725,2]
[424305895,1780759850000,-945.98,0.00028725,2]
[424305878,1780759850000,-550.0,0.00028596,2]
[424305897,1780759850000,-716.0,0.00028739,3]
[424305879,1780759850000,-550.0,0.00028596,2]
[424305875,1780759850000,-550.0,0.00028596,2]
[424305865,1780759850000,-2322.0,0.00028373,3]
[424305869,1780759850000,-168.3888056,0.0002856,2]
[424305900,1780759850000,-520.28,0.00028767,2]
[424305841,1780759850000,-3817.31,0.000281,7]
[424305843,1780759850000,-1694.69,0.00028123,2]
[424305845,1780759850000,-716.0,0.00028205,3]
[424305850,1780759850000,-894.19061325,0.00028289,2]
[424305842,1780759850000,-1399.73,0.000281,14]
[424305846,1780759850000,-4204.8,0.00028267,2]
[424305851,1780759850000,-225.18697532,0.00028289,2]
[424305849,1780759850000,-1842.0326633,0.00028289,2]
[424305852,1780759850000,-360.96183466,0.00028289,2]
[424305848,1780759850000,-270.0455652,0.00028289,2]
[424305844,1780759850000,-1776.95,0.0002813,2]
[424305847,1780759850000,-300.0,0.00028288,10]
[424305854,1780759850000,-12318.36988822,0.00028289,2]
[424305864,1780759850000,-225.903832,0.0002835,10]
[424305855,1780759850000,-270.0455652,0.00028289,2]
[424305857,1780759850000,-151.0,0.00028289,2]
[424305863,1780759850000,-1000.0,0.000283,2]
[424305859,1780759850000,-151.0,0.00028289,2]
[424305856,1780759850000,-500.0,0.00028289,2]
[424305858,1780759850000,-270.0455652,0.00028289,2]
[424305861,1780759850000,-200.0,0.000283,2]
[424305860,1780759850000,-315.0,0.000283,2]
[424305862,1780759850000,-309.0,0.000283,2]
[424305866,1780759850000,-13002.73,0.00028485,7]
[424305868,1780759850000,-495.39674861,0.00028504,2]
[424305867,1780759850000,-168.33,0.00028493,2]
[424305877,1780759850000,-550.0,0.00028596,2]
[424305901,1780759850000,-945.98,0.00028788,30]
[424305853,1780759850000,-200.0,0.00028289,2]
[424305903,1780759850000,-200.0,0.00028794,2]
[424305933,1780759850000,-5334.16371306,0.000289,2]
[424305930,1780759850000,-944.95,0.00028883,30]
[424305935,1780759850000,-945.98,0.00028915,2]
[424305934,1780759850000,-25562.0,0.00028904,2]
[424305940,1780759850000,-944.95,0.00028947,7]
[424305941,1780759850000,-3344.07,0.00028964,2]
[424305949,1780759850000,-164.68866913,0.00028971,2]
[424305947,1780759850000,-32267.00039438,0.0002897,6]
[424305948,1780759850000,-179.97120458,0.00028971,2]
[424305951,1780759850000,-404.98580364,0.00028973,2]
[424305950,1780759850000,-194.000028,0.00028971,2]
[424305962,1780759850000,-152.72459537,0.00028973,2]
[424305944,1780759850000,-3358.76,0.00028964,2]
[424305942,1780759850000,-3592.68,0.00028964,2]
[424305945,1780759850000,-1401.3,0.00028964,2]
[424305946,1780759850000,-3595.24,0.00028964,2]
[424305943,1780759850000,-1400.79,0.00028964,2]
[424305953,1780759850000,-238.37845884,0.00028973,2]
[424305952,1780759850000,-367.34836471,0.00028973,2]
[424305957,1780759850000,-301.55837379,0.00028973,2]
[424305954,1780759850000,-420.26207897,0.00028973,2]
[424305902,1780759850000,-944.95,0.00028788,30]
[424305956,1780759850000,-333.87196225,0.00028973,2]
[424305958,1780759850000,-232.63263453,0.00028973,2]
[424305955,1780759850000,-305.52751016,0.00028973,2]
[424305961,1780759850000,-211.36172796,0.00028973,2]
[424305959,1780759850000,-411.79508761,0.00028973,2]
[424305929,1780759850000,-945.98,0.00028883,30]
[424305932,1780759850000,-5334.16371306,0.000289,2]
[424305960,1780759850000,-311.23127247,0.00028973,2]
[424305938,1780759850000,-151.0,0.00028924,4]
[424305931,1780759850000,-5334.16371308,0.000289,2]
[424305913,1780759850000,-945.98,0.0002882,2]
[424305914,1780759850000,-944.95,0.0002882,2]
[424305904,1780759850000,-3344.07,0.00028797,7]
[424305908,1780759850000,-1401.3,0.00028797,7]
[424305907,1780759850000,-3358.76,0.00028797,7]
[424305905,1780759850000,-3592.68,0.00028797,7]
[424305906,1780759850000,-1400.79,0.00028797,7]
[424305912,1780759850000,-215.80795776,0.000288,10]
[424305911,1780759850000,-1399.73,0.000288,14]
[424305909,1780759850000,-3595.24,0.00028797,7]
[424305910,1780759850000,-3817.31,0.000288,7]
[424305916,1780759850000,-1910.18787185,0.00028837,2]
[424305918,1780759850000,-374.31742255,0.00028837,2]
[424305915,1780759850000,-280.03725111,0.00028837,2]
[424305923,1780759850000,-151.0,0.00028837,2]
[424305920,1780759850000,-5333.73533212,0.00028837,2]
[424305939,1780759850000,-945.98,0.00028947,7]
[424305937,1780759850000,-500.0,0.00028923,14]
[424305928,1780759850000,-150.0,0.00028855,2]
[424305926,1780759850000,-945.98,0.00028852,7]
[424305924,1780759850000,-280.03725111,0.00028837,2]
[424305936,1780759850000,-944.95,0.00028915,2]
[424305921,1780759850000,-280.03725111,0.00028837,2]
[424305919,1780759850000,-200.0,0.00028837,2]
[424305925,1780759850000,-151.0,0.00028837,2]
[424305927,1780759850000,-944.95,0.00028852,7]
[424305922,1780759850000,-500.0,0.00028837,2]
[424305917,1780759850000,-233.5188934,0.00028837,2]
[424305989,1780759851000,-165.0,0.00029,4]
[424305991,1780759851000,-158.0,0.00029,4]
[424305994,1780759851000,-158.0,0.00029,4]
[424305993,1780759851000,-158.0,0.00029,4]
[424305990,1780759851000,-158.0,0.00029,4]
[424305992,1780759851000,-158.0,0.00029,4]
[424305996,1780759851000,-158.0,0.00029,4]
[424305995,1780759851000,-158.0,0.00029,4]
[424305997,1780759851000,-158.0,0.00029,4]
[424305999,1780759851000,-158.0,0.00029,4]
[424306003,1780759851000,-5688.50093965,0.00029,5]
[424306000,1780759851000,-223545.7210156,0.00029,7]
[424306004,1780759851000,-219.75991866,0.00029,2]
[424306005,1780759851000,-511.34900412,0.00029,2]
[424306007,1780759851000,-527.14288805,0.00029,2]
[424306001,1780759851000,-1395.83522564,0.00029,2]
[424306006,1780759851000,-215.80795776,0.00029,30]
[424306002,1780759851000,-1000.66450105,0.00029,2]
[424306009,1780759851000,-1369.0,0.00029,2]
[424306010,1780759851000,-1359.0,0.00029,2]
[424305986,1780759851000,-157.0,0.00029,4]
[424305998,1780759851000,-158.0,0.00029,4]
[424305988,1780759851000,-157.0,0.00029,4]
[424305971,1780759851000,-335.96892356,0.00028998,2]
[424305980,1780759851000,-911.0,0.00029,7]
[424305963,1780759851000,-386.69147465,0.00028973,2]
[424305964,1780759851000,-153.63836031,0.00028973,2]
[424305968,1780759851000,-169.65,0.00028985,3]
[424305965,1780759851000,-377.12580138,0.00028973,2]
[424305967,1780759851000,-944.95,0.00028979,30]
[424305966,1780759851000,-945.98,0.00028979,30]
[424305970,1780759851000,-199.0210474,0.0002899,2]
[424305969,1780759851000,-169.65,0.00028985,3]
[424305974,1780759851000,-418.0085334,0.00028998,2]
[424305973,1780759851000,-175.30836802,0.00028998,2]
[424305972,1780759851000,-160.31740056,0.00028998,2]
[424305976,1780759851000,-200.0,0.00029,2]
[424305975,1780759851000,-200.0,0.00029,2]
[424305978,1780759851000,-400.0,0.00029,2]
[424305982,1780759851000,-159.0,0.00029,4]
[424305979,1780759851000,-265.75,0.00029,2]
[424305977,1780759851000,-200.0,0.00029,2]
[424305984,1780759851000,-157.0,0.00029,4]
[424305985,1780759851000,-157.0,0.00029,4]
[424305981,1780759851000,-8917.06599186,0.00029,30]
[424305983,1780759851000,-157.0,0.00029,4]
[424305987,1780759851000,-157.0,0.00029,4]
[424306017,1780759851000,-745.35440183,0.0002901,2]
[424306012,1780759851000,-944.95,0.0002901,2]
[424306008,1780759851000,-215.80795776,0.00029,3]
[424306040,1780759851000,-175.78139797,0.0002901,2]
[424306038,1780759851000,-215.07956885,0.0002901,2]
[424306043,1780759851000,-166.00801039,0.0002901,2]
[424306042,1780759851000,-157.1912856,0.0002901,2]
[424306046,1780759851000,-189.56678385,0.0002901,2]
[424306044,1780759851000,-361.60642446,0.0002901,2]
[424306048,1780759851000,-332.99933529,0.0002901,2]
[424306050,1780759851000,-368.47090786,0.0002901,2]
[424306045,1780759851000,-323.70237479,0.0002901,2]
[424306049,1780759851000,-170.60441917,0.0002901,2]
[424306052,1780759851000,-316.18300225,0.0002901,2]
[424306051,1780759851000,-310.3674778,0.0002901,2]
[424306060,1780759851000,-368.19114833,0.0002901,2]
[424306054,1780759851000,-334.47897504,0.0002901,2]
[424306056,1780759851000,-301.26545663,0.0002901,2]
[424306053,1780759851000,-342.7753411,0.0002901,2]
[424306055,1780759851000,-307.70793271,0.0002901,2]
[424306057,1780759851000,-191.32950821,0.0002901,2]
[424306058,1780759851000,-193.77076756,0.0002901,2]
[424306059,1780759851000,-327.71880563,0.0002901,2]
[424306016,1780759851000,-334.7200693,0.0002901,2]
[424306036,1780759851000,-155.58427189,0.0002901,2]
[424306033,1780759851000,-215.78930977,0.0002901,2]
[424306047,1780759851000,-247.60686755,0.0002901,2]
[424306035,1780759851000,-307.83310308,0.0002901,2]
[424306018,1780759851000,-316.34344045,0.0002901,2]
[424306037,1780759851000,-237.93976967,0.0002901,2]
[424306011,1780759851000,-945.98,0.0002901,2]
[424306019,1780759851000,-306.87585385,0.0002901,2]
[424306014,1780759851000,-850.36329137,0.0002901,2]
[424306013,1780759851000,-316.42019656,0.0002901,2]
[424306015,1780759851000,-792.95154986,0.0002901,2]
[424306021,1780759851000,-435.22315003,0.0002901,2]
[424306022,1780759851000,-370.24522921,0.0002901,2]
[424306023,1780759851000,-319.16098919,0.0002901,2]
[424306026,1780759851000,-303.69139495,0.0002901,2]
[424306020,1780759851000,-658.86342727,0.0002901,2]
[424306025,1780759851000,-347.54854543,0.0002901,2]
[424306027,1780759851000,-159.12162414,0.0002901,2]
[424306024,1780759851000,-336.34279026,0.0002901,2]
[424306029,1780759851000,-359.02310339,0.0002901,2]
[424306028,1780759851000,-190.99720698,0.0002901,2]
[424306030,1780759851000,-303.3105458,0.0002901,2]
[424306032,1780759851000,-311.19710941,0.0002901,2]
[424306031,1780759851000,-366.15237993,0.0002901,2]
[424306041,1780759851000,-160.62886321,0.0002901,2]
[424306039,1780759851000,-402.78536409,0.0002901,2]
[424306034,1780759851000,-237.62669559,0.0002901,2]
[424306103,1780759852000,-151.0,0.00029213,3]
[424306099,1780759852000,-151.0,0.00029213,3]
[424306097,1780759852000,-151.0,0.00029213,3]
[424306092,1780759852000,-1548.0,0.00029213,3]
[424306089,1780759852000,-1548.0,0.00029213,3]
[424306091,1780759852000,-1548.0,0.00029213,3]
[424306096,1780759852000,-151.0,0.00029213,3]
[424306095,1780759852000,-281.2612502,0.00029213,3]
[424306088,1780759852000,-1548.0,0.00029213,3]
[424306098,1780759852000,-151.0,0.00029213,3]
[424306090,1780759852000,-1548.0,0.00029213,3]
[424306101,1780759852000,-151.0,0.00029213,3]
[424306113,1780759852000,-1548.0,0.00029213,3]
[424306102,1780759852000,-151.0,0.00029213,3]
[424306106,1780759852000,-1548.0,0.00029213,3]
[424306107,1780759852000,-1548.0,0.00029213,3]
[424306100,1780759852000,-151.0,0.00029213,3]
[424306105,1780759852000,-198.86658173,0.00029213,3]
[424306104,1780759852000,-151.0,0.00029213,3]
[424306110,1780759852000,-1548.0,0.00029213,3]
[424306109,1780759852000,-1548.0,0.00029213,3]
[424306111,1780759852000,-1548.0,0.00029213,3]
[424306114,1780759852000,-1548.0,0.00029213,3]
[424306112,1780759852000,-1548.0,0.00029213,3]
[424306094,1780759852000,-1548.0,0.00029213,3]
[424306108,1780759852000,-1548.0,0.00029213,3]
[424306093,1780759852000,-1548.0,0.00029213,3]
[424306074,1780759852000,-1400.79,0.00029132,30]
[424306086,1780759852000,-1548.0,0.00029213,3]
[424306062,1780759852000,-944.95,0.00029042,7]
[424306061,1780759852000,-945.98,0.00029042,7]
[424306118,1780759852000,-945.03,0.00029232,7]
[424306064,1780759852000,-944.95,0.00029074,30]
[424306063,1780759852000,-945.98,0.00029074,30]
[424306071,1780759852000,-300.0,0.0002913,7]
[424306066,1780759852000,-945.98,0.00029105,2]
[424306073,1780759852000,-3592.68,0.00029132,30]
[424306068,1780759852000,-300.0,0.0002913,7]
[424306072,1780759852000,-3344.07,0.00029132,30]
[424306065,1780759852000,-150.0,0.00029091,15]
[424306070,1780759852000,-313.09280882,0.0002913,7]
[424306069,1780759852000,-500.0,0.0002913,5]
[424306067,1780759852000,-944.95,0.00029105,2]
[424306075,1780759852000,-3358.76,0.00029132,30]
[424306077,1780759852000,-3595.24,0.00029132,30]
[424306079,1780759852000,-944.95,0.00029137,7]
[424306082,1780759852000,-1933.13854938,0.0002918,5]
[424306080,1780759852000,-945.98,0.00029169,30]
[424306076,1780759852000,-1401.3,0.00029132,30]
[424306081,1780759852000,-944.95,0.00029169,30]
[424306078,1780759852000,-945.98,0.00029137,7]
[424306084,1780759852000,-944.95,0.00029201,2]
[424306083,1780759852000,-945.98,0.00029201,2]
[424306085,1780759852000,-1548.0,0.00029213,3]
[424306087,1780759852000,-1548.0,0.00029213,3]
[424306115,1780759852000,-1562.23345922,0.00029213,3]
[424306170,1780759852000,-1793.307026,0.00029534,15]
[424306116,1780759852000,-300.07045574,0.00029226,2]
[424306146,1780759852000,-6073.0,0.00029347,2]
[424306151,1780759852000,-388.16716718,0.00029385,2]
[424306152,1780759852000,-200.0,0.00029385,2]
[424306150,1780759852000,-242.15909246,0.00029385,2]
[424306149,1780759852000,-1980.8648231,0.00029385,2]
[424306153,1780759852000,-290.3986294,0.00029385,2]
[424306155,1780759852000,-151.0,0.00029385,2]
[424306163,1780759852000,-460.2,0.00029527,14]
[424306164,1780759852000,-428.37,0.00029527,14]
[424306154,1780759852000,-500.0,0.00029385,2]
[424306156,1780759852000,-287.89218744,0.00029385,2]
[424306157,1780759852000,-151.0,0.00029385,2]
[424306161,1780759852000,-400.0,0.000295,2]
[424306160,1780759852000,-1300.7,0.00029452,2]
[424306158,1780759852000,-948.0,0.00029452,30]
[424306162,1780759852000,-200.0,0.00029512,2]
[424306168,1780759852000,-1500.0,0.00029534,15]
[424306165,1780759852000,-1500.0,0.00029534,15]
[424306167,1780759852000,-1500.0,0.00029534,15]
[424306166,1780759852000,-1500.0,0.00029534,15]
[424306169,1780759852000,-1500.0,0.00029534,15]
[424306172,1780759852000,-200.0,0.00029572,2]
[424306171,1780759852000,-150.0,0.00029534,2]
[424306173,1780759852000,-150.0,0.00029589,14]
[424306117,1780759852000,-946.06,0.00029232,7]
[424306143,1780759852000,-408.0,0.0002934,30]
[424306148,1780759852000,-290.3986294,0.00029385,2]
[424306159,1780759852000,-585.0,0.00029452,30]
[424306145,1780759852000,-1227.0,0.00029347,2]
[424306119,1780759852000,-716.0,0.00029273,4]
[424306144,1780759852000,-1274.0,0.00029347,2]
[424306120,1780759852000,-3344.07,0.00029299,7]
[424306123,1780759852000,-3358.76,0.00029299,7]
[424306122,1780759852000,-1400.79,0.00029299,7]
[424306121,1780759852000,-3592.68,0.00029299,7]
[424306131,1780759852000,-206.13905836,0.0002933,7]
[424306126,1780759852000,-1739.75,0.000293,7]
[424306128,1780759852000,-1093.96,0.000293,7]
[424306125,1780759852000,-3595.24,0.00029299,7]
[424306130,1780759852000,-179.97120458,0.00029319,2]
[424306124,1780759852000,-1401.3,0.00029299,7]
[424306129,1780759852000,-1399.73,0.000293,14]
[424306127,1780759852000,-3817.31,0.000293,7]
[424306137,1780759852000,-4110.0,0.00029334,30]
[424306147,1780759852000,-3642.0,0.00029347,2]
[424306133,1780759852000,-936.0,0.00029334,30]